bitfinex/quotes_SOLUSD_20220119
["timestamp","ask_amount","ask_price","bid_price","bid_amount"]
[1642627935239,71.02181054,136.08,136.01,0.25]
[1642627935438,71.02181054,136.08,136.02,38.30075824]
[1642627935837,71.02181054,136.08,136.03,0.25]
[1642627937237,71.28181054,136.08,136.03,0.25]
[1642627938038,47.31631054,136.08,136.03,0.25]
[1642627938239,11.0887,136.1,136.03,0.25]
[1642627938439,27.1638,136.12,136.03,0.25]
[1642627938440,26.1687519,136.12,136.04,2.939]
[1642627938669,24.2238,136.12,136.05,6.0]
[1642627938870,24.2238,136.12,136.06,2.939]
[1642627939267,24.2238,136.12,136.07,36.42280387]
[1642627939467,1.9449519,136.15,136.07,36.42280387]
[1642627939668,1.9449519,136.15,136.07,36.68280387]
[1642627939871,23.1468,136.17,136.07,36.68280387]
[1642627940068,23.1468,136.17,136.08,2.938]
[1642627940268,23.1468,136.17,136.09,0.25]
[1642627940468,38.39726144,136.16,136.1,2.938]
[1642627940868,38.39726144,136.16,136.11,0.25]
[1642627941969,36.89726144,136.16,136.1,0.25]
[1642627943774,36.89726144,136.16,136.09,0.25]
[1642627943975,24.7493,136.15,136.09,0.25]
[1642627944272,24.7493,136.15,136.06,0.25]
[1642627944671,49.628,136.15,136.05,0.25]
[1642627947576,86.20712602,136.14,136.04,8.938]
[1642627947777,73.53,136.12,136.04,2.938]
[1642627948075,73.53,136.1,136.04,2.938]
[1642627948475,28.09073878,136.11,136.04,2.938]
[1642627948880,0.25,136.1,136.04,2.938]
[1642627949277,36.89726144,136.08,136.04,2.938]
[1642627949475,36.89726144,136.08,135.98,69.5478354]
[1642627949675,83.96356144,136.08,135.98,69.8078354]
[1642627950076,83.96356144,136.08,135.99,6.0]
[1642627950279,83.96356144,136.08,135.99,9.2]
[1642627950676,83.96356144,136.08,136.0,0.25]
[1642627955479,84.22356144,136.08,136.0,0.25]
[1642627955887,95.25096144,136.08,136.0,0.25]
[1642627956078,0.25,136.07,135.99,0.25]
[1642627956281,2.94,136.07,135.98,0.25]
[1642627956582,84.22356144,136.08,135.98,0.25]
[1642627956780,84.22356144,136.08,135.97,36.22038566]
[1642627957319,84.22356144,136.08,135.97,36.48038566]
[1642627957479,84.22356144,136.08,135.97,0.51]
[1642627957679,94.82356144,136.08,135.97,0.25]
[1642627957881,11.0287,136.07,135.96,0.26]
[1642627958083,13.9687,136.07,135.95,3.2]
[1642627958279,11.0287,136.07,135.95,3.2]
[1642627958478,101.13856144,136.08,135.95,41.95545529]
[1642627958479,22.09073878,136.05,135.95,41.95545529]
[1642627958979,22.9912,136.04,135.96,6.0]
[1642627959182,22.9912,136.04,135.97,2.941]
[1642627959380,22.9912,136.04,135.98,44.45492497]
[1642627959580,22.9912,136.04,135.98,44.70492497]
[1642627959782,22.9912,136.04,135.98,44.96492497]
[1642627960583,22.9912,136.04,135.98,0.51]
[1642627960783,22.9912,136.04,135.97,0.25]
[1642627961586,22.9912,136.04,135.97,40.73575531]
[1642627961789,22.9912,136.04,135.97,40.99575531]
[1642627963386,22.9912,136.04,135.97,52.02285531]
[1642627964586,22.9912,136.04,135.97,54.96385531]
[1642627967091,22.9912,136.04,135.97,43.93675531]
[1642627971692,22.9912,136.04,135.98,6.0]
[1642627972095,22.9912,136.04,135.99,0.25]
[1642627973095,22.9912,136.04,135.97,2.941]
[1642627973395,22.9912,136.04,135.98,0.25]
[1642627973996,22.9912,136.04,135.97,2.941]
[1642627974197,34.0218,136.04,135.94,56.3644305]
[1642627974396,34.0218,136.04,135.94,56.6244305]
[1642627975196,34.0218,136.04,135.95,0.25]
[1642627976697,34.2818,136.04,135.95,0.25]
[1642627977701,34.2818,136.04,135.95,2.32732655]
[1642627977902,22.9912,136.04,135.95,2.58732655]
[1642627978104,22.9912,136.04,135.97,42.19877681]
[1642627978303,22.9912,136.04,135.98,0.25]
[1642627978502,22.9912,136.04,135.98,3.19]
[1642627978702,22.9912,136.04,135.98,3.45]
[1642627980238,23.44481766,136.03,135.98,3.45]
[1642627980439,23.44481766,136.03,135.98,0.51]
[1642627980841,23.44481766,136.03,135.98,0.25]
[1642627982746,23.44481766,136.03,135.97,0.25]
[1642627983144,23.44481766,136.03,135.96,0.25]
[1642627983946,24.9628,136.02,135.96,0.25]
[1642627984546,24.9628,136.02,135.96,44.06559304]
[1642627984747,24.9628,136.02,135.96,50.32559304]
[1642627984946,24.9628,136.02,135.96,52.40291959]
[1642627985147,24.9628,136.02,135.96,46.40291959]
[1642627985550,24.9628,136.02,135.96,44.32559304]
[1642627989248,24.9628,136.02,135.96,0.25]
[1642627989852,25.2228,136.02,135.96,0.25]
[1642627990052,25.2228,136.02,135.95,2.32732655]
[1642627990354,25.2228,136.02,135.95,47.95878232]
[1642627990554,25.2228,136.02,135.95,48.21878232]
[1642627991155,24.9628,136.02,135.95,48.21878232]
[1642627991755,24.9628,136.02,135.96,2.07732655]
[1642627992154,24.9628,136.02,135.97,0.25]
[1642627994256,24.9628,136.02,135.96,0.25]
[1642627995559,24.9628,136.02,135.95,0.25]
[1642627996357,73.53,136.01,135.95,0.25]
[1642627996557,24.4415,136.0,135.94,0.25]
[1642627996757,35.54318256,135.99,135.94,0.25]
[1642627996957,35.54318256,135.99,135.93,2.07732655]
[1642627997359,35.54318256,135.99,135.92,2.07732655]
[1642627998162,35.54318256,135.99,135.91,13.541]
[1642627998163,73.53,135.98,135.91,5.01832655]
[1642627998360,96.6957,135.98,135.9,2.07732655]
[1642627998599,96.6957,135.98,135.89,2.07732655]
[1642627998787,107.7315,135.98,135.89,2.07732655]
[1642627999188,73.53,135.96,135.89,2.07732655]
[1642627999388,80.94,135.96,135.88,2.07732655]
[1642627999587,22.5322,135.95,135.87,2.07732655]
[1642627999787,57.01491766,135.95,135.87,2.07732655]
[1642628000387,57.01491766,135.95,135.86,2.07732655]
[1642628000589,57.01491766,135.95,135.86,2.32732655]
[1642628000789,57.01491766,135.95,135.86,2.58732655]
[1642628000988,57.01491766,135.95,135.87,2.07732655]
[1642628001189,57.01491766,135.95,135.88,0.25]
[1642628002590,57.01491766,135.95,135.87,0.25]
[1642628003593,57.01491766,135.95,135.86,0.25]
[1642628003993,45.97701766,135.95,135.86,0.25]
[1642628004193,22.5322,135.95,135.86,0.25]
[1642628004395,22.5322,135.95,135.86,6.25]
[1642628004594,22.5322,135.95,135.86,8.32732655]
[1642628004794,22.5322,135.95,135.87,2.943]
[1642628005196,58.91612261,135.95,135.88,42.32166815]
[1642628005395,58.91612261,135.95,135.89,2.943]
[1642628005795,58.91612261,135.95,135.9,0.25]
[1642628007696,22.5322,135.95,135.9,0.25]
[1642628008297,118.3233,135.99,135.9,0.25]
[1642628008499,24.504,135.98,135.9,0.25]
[1642628008698,70.78731169,135.98,135.9,0.25]
[1642628010100,71.04731169,135.98,135.9,0.25]
[1642628010901,155.61281169,135.98,135.89,2.943]
[1642628011107,155.61281169,135.98,135.88,2.942]
[1642628011108,0.25,135.97,135.88,2.942]
[1642628011404,3.192,135.97,135.86,18.67732655]
[1642628011599,24.9313,135.96,135.86,16.86]
[1642628011799,24.9313,135.96,135.86,19.803]
[1642628012004,12.70468853,135.95,135.86,19.803]
[1642628012200,12.70468853,135.95,135.87,0.25]
[1642628012201,23.74248853,135.95,135.87,0.25]
[1642628012401,24.9419,135.94,135.87,0.25]
[1642628013804,25.2019,135.94,135.87,0.25]
[1642628015904,25.2019,135.94,135.87,3.193]
[1642628016308,25.2019,135.94,135.87,3.453]
[1642628016908,25.2019,135.94,135.87,0.51]
[1642628017109,25.2019,135.94,135.87,0.25]
[1642628018840,24.9419,135.94,135.87,0.25]
[1642628020039,24.9419,135.94,135.86,15.88032655]
[1642628020239,24.9419,135.94,135.86,13.803]
[1642628021040,25.2019,135.94,135.86,13.803]
[1642628021240,25.2019,135.94,135.87,0.25]
[1642628021941,25.2019,135.94,135.87,48.68447423]
[1642628022340,25.2019,135.94,135.87,48.94447423]
[1642628023340,25.2019,135.94,135.87,59.54447423]
[1642628023544,25.2019,135.94,135.87,61.62180078]
[1642628024047,25.2019,135.94,135.87,59.54447423]
[1642628024444,25.2019,135.94,135.87,59.28447423]
[1642628025446,25.2019,135.94,135.87,61.36180078]
[1642628026548,24.9419,135.94,135.87,61.36180078]
[1642628026747,24.9419,135.94,135.88,2.07732655]
[1642628026950,24.9419,135.94,135.88,12.67732655]
[1642628027152,24.9419,135.94,135.89,0.25]
[1642628027347,24.9419,135.94,135.89,2.32732655]
[1642628027548,24.9419,135.94,135.89,2.58732655]
[1642628027948,24.9419,135.94,135.9,45.50897753]
[1642628028148,24.9419,135.94,135.9,47.58630408]
[1642628028348,24.9419,135.94,135.91,0.25]
[1642628028550,43.76709147,135.97,135.91,0.25]
[1642628028749,67.47349147,135.97,135.91,0.25]
[1642628029151,23.7064,135.97,135.91,0.25]
[1642628029450,23.7064,135.97,135.91,2.32732655]
[1642628029651,23.7064,135.97,135.91,5.26932655]
[1642628029850,23.7064,135.97,135.92,10.6]
[1642628030250,23.7064,135.97,135.93,47.71919037]
[1642628030651,23.1581,135.99,135.93,47.97919037]
[1642628032658,47.8312,135.99,135.93,47.97919037]
[1642628034360,47.8312,135.99,135.93,47.72919037]
[1642628035363,47.8312,135.99,135.93,58.32919037]
[1642628035563,47.8312,135.99,135.94,0.25]
[1642628037666,47.8312,135.99,135.91,0.25]
[1642628038068,47.8312,135.99,135.9,6.25]
[1642628038268,47.8312,135.99,135.91,45.60315597]
[1642628038469,58.8659,135.99,135.91,45.60315597]
[1642628038669,58.8659,135.99,135.92,0.25]
[1642628038868,58.8659,135.99,135.92,6.25]
[1642628039067,58.8659,135.99,135.92,0.25]
[1642628039470,47.8312,135.99,135.92,0.25]
[1642628040371,47.8312,135.99,135.92,6.25]
[1642628040570,47.8312,135.99,135.92,0.25]
[1642628040771,47.8312,135.99,135.92,0.51]
[1642628041370,47.8312,135.99,135.92,0.25]
[1642628041771,47.8312,135.99,135.92,10.85]
[1642628042170,47.8312,135.99,135.92,11.11]
[1642628044905,47.8312,135.99,135.92,10.85]
[1642628045105,64.1888,135.99,135.92,10.85]
[1642628046206,64.1888,135.99,135.92,51.22930573]
[1642628046406,64.1888,135.99,135.92,51.48930573]
[1642628047010,64.1888,135.99,135.92,40.88930573]
[1642628048209,47.8312,135.99,135.92,40.88930573]
[1642628048808,48.0912,135.99,135.92,40.88930573]
[1642628049008,48.0912,135.99,135.92,0.26]
[1642628049209,48.0912,135.99,135.9,8.33732655]
[1642628049615,48.0912,135.99,135.9,9.75193206]
[1642628050011,48.0912,135.99,135.91,47.6978842]
[1642628050212,48.0912,135.99,135.92,0.25]
[1642628050410,48.0912,135.99,135.92,6.25]
[1642628050811,48.0912,135.99,135.92,6.51]
[1642628052121,48.0912,135.99,135.92,0.51]
[1642628052316,48.0912,135.99,135.92,0.25]
[1642628057019,48.0912,135.99,135.92,2.32732655]
[1642628057215,48.0912,135.99,135.92,2.58732655]
[1642628057816,48.0912,135.99,135.92,13.18732655]
[1642628058417,47.8312,135.99,135.93,1.41460551]
[1642628058616,1.9449519,136.03,135.93,20.09193206]
[1642628058816,26.8354519,136.04,135.94,2.32732655]
[1642628059016,72.86766844,136.04,135.95,16.6]
[1642628059216,72.86766844,136.04,135.96,0.25]
[1642628059416,26.8354519,136.04,135.96,0.25]
[1642628059717,24.8905,136.04,135.97,10.6]
[1642628059919,24.8905,136.04,135.98,2.941]
[1642628060119,24.8905,136.04,135.99,10.6]
[1642628060320,24.8905,136.04,136.0,0.25]
[1642628062023,24.8905,136.04,136.0,6.25]
[1642628062221,24.8905,136.04,136.0,6.51]
[1642628062822,26.1092519,136.07,136.0,6.51]
[1642628063024,22.7153,136.06,136.0,6.51]
[1642628065224,22.7153,136.06,136.0,6.25]
[1642628065422,96.2453,136.06,135.97,13.54]
[1642628065822,96.2453,136.06,135.98,0.25]
[1642628066024,98.1902519,136.06,135.93,5.01732655]
[1642628066225,0.25,136.05,135.95,2.94]
[1642628066423,0.25,136.05,135.95,10.6]
[1642628067422,11.0309,136.04,135.95,10.6]
[1642628067625,37.63733134,136.03,135.96,0.25]
[1642628069023,37.89733134,136.03,135.96,0.25]
[1642628070025,6.0,136.02,135.96,0.25]
[1642628070626,23.7784,136.01,135.96,0.25]
[1642628070825,41.59039089,136.0,135.96,0.25]
[1642628071026,47.59039089,136.0,135.96,0.25]
[1642628072729,41.59039089,136.0,135.96,0.25]
[1642628078640,41.59039089,136.0,135.94,0.25]
[1642628080445,23.7784,136.01,135.94,0.25]
[1642628081246,23.7784,136.01,135.94,2.32732655]
[1642628081446,23.7784,136.01,135.94,0.51]
[1642628081645,68.19700618,136.01,135.94,0.51]
[1642628082046,68.19700618,136.01,135.94,0.25]
[1642628082248,68.19700618,136.01,135.94,11.2797]
[1642628082448,68.19700618,136.01,135.94,11.5397]
[1642628083756,68.19700618,136.01,135.94,13.61702655]
[1642628083951,68.19700618,136.01,135.95,6.0]
[1642628084151,23.7784,136.01,135.95,27.629]
[1642628084351,23.7784,136.01,135.96,0.25]
[1642628084554,24.6664,136.05,135.96,0.25]
[1642628084752,24.6664,136.05,135.96,3.19]
[1642628085170,45.87140266,136.04,135.96,52.16139724]
[1642628085372,23.8579,136.03,135.96,52.16139724]
[1642628085572,23.8579,136.03,135.96,49.22139724]
[1642628086680,23.8579,136.03,135.96,52.16239724]
[1642628087576,1.9449519,136.06,135.97,6.0]
[1642628087776,26.0465519,136.06,135.98,0.25]
[1642628087979,24.1016,136.06,135.99,10.6]
[1642628088177,24.1016,136.06,136.0,0.25]
[1642628088380,24.1016,136.06,136.0,6.25]
[1642628088578,70.86864446,136.06,136.0,41.46091188]
[1642628090179,70.86864446,136.06,136.0,6.25]
[1642628090386,70.86864446,136.06,136.0,0.25]
[1642628090780,70.86864446,136.06,135.98,6.25]
[1642628090990,144.39864446,136.06,135.98,6.25]
[1642628091184,72.81359636,136.06,135.98,6.25]
[1642628091388,78.28959636,136.06,135.98,6.25]
[1642628091583,0.25,136.05,135.98,0.25]
[1642628091784,2.1949519,136.05,135.96,0.25]
[1642628091985,8.1949519,136.05,135.96,0.25]
[1642628092187,8.1949519,136.05,135.94,2.32732655]
[1642628092188,23.5693,136.04,135.94,2.32732655]
[1642628092385,23.5693,136.04,135.94,2.58732655]
[1642628092782,23.5693,136.04,135.94,0.51]
[1642628092986,23.5693,136.04,135.94,0.25]
[1642628093186,11.0324,136.03,135.94,0.25]
[1642628093384,23.1854,136.02,135.94,0.25]
[1642628093585,12.22095576,136.01,135.94,0.25]
[1642628093785,23.348,136.0,135.94,0.25]
[1642628095089,41.2808,136.0,135.94,0.25]
[1642628096285,41.2808,136.0,135.93,0.25]
[1642628096688,41.5408,136.0,135.93,0.25]
[1642628096885,30.507,136.0,135.93,0.25]
[1642628100290,30.247,136.0,135.93,0.25]
[1642628101687,30.507,136.0,135.93,0.25]
[1642628103388,23.608,136.0,135.93,0.25]
[1642628108200,23.348,136.0,135.93,0.25]
[1642628115633,23.608,136.0,135.93,0.25]
[1642628119041,30.833,136.0,135.93,0.25]
[1642628119242,0.25,135.99,135.91,40.08698924]
[1642628119440,0.25,135.99,135.91,2.07732655]
[1642628119643,0.25,135.99,135.9,5.01832655]
[1642628120244,0.25,135.99,135.9,2.941]
[1642628120443,0.25,135.99,135.91,0.25]
[1642628120647,11.0354,135.98,135.91,0.25]
[1642628120848,44.20501661,135.96,135.91,0.25]
[1642628122248,23.9497,135.95,135.9,0.25]
[1642628124548,24.2097,135.95,135.9,0.25]
[1642628127650,35.2475,135.95,135.9,0.25]
[1642628128255,73.53,135.94,135.9,0.25]
[1642628128550,22.6501,135.93,135.87,6.25]
[1642628131082,22.6501,135.93,135.87,6.0]
[1642628132283,22.6501,135.93,135.87,7.67457968]
[1642628132485,22.6501,135.93,135.88,0.25]
[1642628133084,22.6501,135.93,135.88,10.85]
[1642628137792,22.6501,135.93,135.88,10.6]
[1642628139194,22.6501,135.93,135.89,0.25]
[1642628139392,22.6501,135.93,135.86,17.9264195]
[1642628139793,22.6501,135.93,135.86,10.6]
[1642628140194,22.6501,135.93,135.86,10.86]
[1642628140397,22.6501,135.93,135.87,2.943]
[1642628140598,22.6501,135.93,135.86,13.803]
[1642628140796,22.6501,135.93,135.87,0.25]
[1642628140997,22.9101,135.93,135.87,0.25]
[1642628141396,22.9101,135.93,135.86,13.803]
[1642628142399,22.9101,135.93,135.86,10.86]
[1642628142699,22.6501,135.93,135.87,0.25]
[1642628146000,22.6501,135.93,135.87,7.66847111]
[1642628146201,23.8531,135.97,135.88,13.543]
[1642628146400,24.0117,135.96,135.88,13.543]
[1642628146602,24.0117,135.96,135.89,6.25]
[1642628146900,24.0117,135.96,135.9,2.942]
[1642628147304,24.0117,135.96,135.91,0.25]
[1642628148303,24.0117,135.96,135.9,44.62898051]
[1642628148736,24.0117,135.96,135.9,44.88898051]
[1642628152841,24.0117,135.96,135.91,2.942]
[1642628153042,24.0117,135.96,135.9,0.51]
[1642628153248,24.0117,135.96,135.9,0.25]
[1642628160248,24.0117,135.96,135.89,16.05342655]
[1642628160451,24.0117,135.96,135.89,2.942]
[1642628161250,38.84838345,135.95,135.89,2.942]
[1642628161449,38.84838345,135.95,135.88,49.57253834]
[1642628161651,24.5697,135.94,135.89,0.25]
[1642628164155,24.5697,135.94,135.9,10.6]
[1642628164552,24.5697,135.94,135.91,0.25]
[1642628164952,24.5697,135.94,135.92,3.03219997]
[1642628165152,23.8531,135.97,135.93,40.90781962]
[1642628165351,23.8531,135.97,135.93,41.15781962]
[1642628165552,23.8531,135.97,135.93,40.90781962]
[1642628165754,23.8531,135.97,135.94,0.25]
[1642628166257,23.8531,135.97,135.9,12.01773017]
[1642628166455,23.9223,135.96,135.94,0.25]
[1642628166655,3.0321,135.95,135.94,0.25]
[1642628167456,3.0321,135.95,135.9,35.62044657]
[1642628167657,3.0321,135.95,135.91,0.25]
[1642628172063,23.9223,135.96,135.91,0.25]
[1642628173264,1.9449519,136.0,135.92,12.01773017]
[1642628173464,24.9257519,136.0,135.92,12.01773017]
[1642628173664,22.9808,136.0,135.93,0.25]
[1642628174666,22.9808,136.0,135.93,1.66773017]
[1642628175095,22.9808,136.0,135.93,1.92773017]
[1642628175297,22.9808,136.0,135.93,1.66773017]
[1642628175497,73.53,135.99,135.93,0.25]
[1642628175696,24.6428,135.98,135.92,0.25]
[1642628178105,24.6428,135.98,135.92,10.85]
[1642628178304,24.6428,135.98,135.93,2.942]
[1642628178705,24.6428,135.98,135.94,0.25]
[1642628180306,98.1728,135.98,135.93,2.942]
[1642628180505,114.2333,135.98,135.88,5.01932655]
[1642628180705,0.25,135.97,135.88,5.01932655]
[1642628180905,0.25,135.97,135.88,2.07732655]
[1642628181305,0.25,135.97,135.87,55.05073947]
[1642628181813,22.46757934,135.96,135.87,52.97341292]
[1642628182005,23.5439,135.95,135.88,0.25]
[1642628183205,23.8039,135.95,135.88,0.25]
[1642628186714,23.8039,135.95,135.88,3.193]
[1642628187614,23.8039,135.95,135.88,2.943]
[1642628187818,23.8039,135.95,135.87,2.943]
[1642628188016,79.53,135.94,135.84,5.02032655]
[1642628188216,11.0407,135.92,135.83,2.15132655]
[1642628188415,16.7567,135.92,135.83,2.15132655]
[1642628188716,73.53,135.9,135.84,6.0]
[1642628189015,73.53,135.9,135.83,6.074]
[1642628189217,98.5074,135.9,135.83,6.324]
[1642628190217,0.25,135.89,135.82,2.07732655]
[1642628190417,73.53,135.88,135.81,2.943]
[1642628190620,73.53,135.86,135.75,534.08715391]
[1642628190817,0.25,135.85,135.75,530.28281729]
[1642628191019,2.945,135.84,135.73,3.80433662]
[1642628191220,73.53,135.82,135.74,47.49056517]
[1642628191419,81.438,135.82,135.74,47.49056517]
[1642628191818,24.4838,135.81,135.74,47.49056517]
[1642628192621,24.4838,135.81,135.72,21.6477]
[1642628192822,24.4838,135.81,135.73,6.0]
[1642628193423,35.533,135.81,135.73,6.0]
[1642628193652,35.533,135.81,135.74,0.25]
[1642628193653,109.063,135.81,135.74,0.25]
[1642628194053,35.533,135.81,135.74,0.25]
[1642628194251,24.4838,135.81,135.74,0.25]
[1642628195552,24.7438,135.81,135.74,0.25]
[1642628197252,35.793,135.81,135.74,0.25]
[1642628201457,109.323,135.81,135.74,0.25]
[1642628204559,35.793,135.81,135.74,0.25]
[1642628205160,35.533,135.81,135.74,0.25]
[1642628205361,24.4838,135.81,135.74,1.66774049]
[1642628205763,24.4838,135.81,135.74,1.92774049]
[1642628207161,24.4838,135.81,135.74,12.97444049]
[1642628208766,24.7438,135.81,135.74,12.97444049]
[1642628209467,24.7438,135.81,135.74,12.71444049]
[1642628209669,24.7438,135.81,135.74,1.66774049]
[1642628211870,24.7438,135.81,135.74,1.92774049]
[1642628212672,24.7438,135.81,135.74,1.66774049]
[1642628213275,24.7438,135.81,135.74,1.92774049]
[1642628213472,24.7438,135.81,135.74,1.66774049]
[1642628213674,24.7438,135.81,135.74,0.25]
[1642628215675,98.2738,135.81,135.74,0.25]
[1642628216474,24.7438,135.81,135.74,0.25]
[1642628216677,24.4838,135.81,135.74,0.25]
[1642628219377,24.4838,135.81,135.74,11.2968]
[1642628220379,0.25,135.8,135.73,6.0]
[1642628220581,73.53,135.79,135.7,14.40433662]
[1642628220781,96.0625,135.78,135.71,4.42322417]
[1642628220982,96.0625,135.78,135.71,0.25]
[1642628221584,36.52042088,135.77,135.71,0.25]
[1642628221781,73.53,135.76,135.71,0.25]
[1642628221982,98.3281,135.76,135.71,0.25]
[1642628223083,24.7981,135.76,135.71,0.25]
[1642628223987,25.0581,135.76,135.71,0.25]
[1642628226686,24.7981,135.76,135.71,0.25]
[1642628227887,25.0581,135.76,135.71,0.25]
[1642628228700,24.7981,135.76,135.71,11.2995]
[1642628229086,24.7981,135.76,135.71,0.25]
[1642628230086,24.7981,135.76,135.69,0.25]
[1642628230387,24.7981,135.76,135.69,10.85]
[1642628230989,24.7981,135.76,135.69,52.8679785]
[1642628231387,25.0581,135.76,135.69,52.8679785]
[1642628233089,6.0,135.75,135.69,52.8679785]
[1642628234928,6.0,135.75,135.69,10.85]
[1642628235492,6.0,135.75,135.66,3.80433662]
[1642628235692,23.9551,135.74,135.65,10.62913567]
[1642628235893,95.23600893,135.73,135.65,10.62913567]
[1642628236295,102.22800893,135.73,135.65,10.62913567]
[1642628236492,84.5874,135.71,135.65,0.02913567]
[1642628236693,24.9484,135.7,135.65,0.02913567]
[1642628236896,32.8454,135.7,135.65,0.02913567]
[1642628237897,37.28199129,135.68,135.65,0.02913567]
[1642628238098,3.0321,135.67,135.65,0.02913567]
[1642628248741,3.2921,135.67,135.65,0.02913567]
[1642628252150,14.3528,135.67,135.65,0.02913567]
[1642628253750,73.53,135.66,135.65,0.02913567]
[1642628254548,14.0928,135.67,135.65,0.02913567]
[1642628254954,3.0321,135.67,135.65,0.02913567]
[1642628258252,3.2921,135.67,135.65,0.02913567]
[1642628263958,3.2921,135.67,135.65,3.06133564]
[1642628264159,23.9699,135.68,135.65,3.06133564]
[1642628266166,23.9699,135.68,135.66,0.25]
[1642628266566,23.9507,135.71,135.67,3.03219997]
[1642628266765,47.8847,135.71,135.67,43.99231332]
[1642628267166,47.8847,135.71,135.67,3.03219997]
[1642628267767,48.1447,135.71,135.67,3.03219997]
[1642628268892,48.1447,135.71,135.66,0.25]
[1642628269296,48.1447,135.71,135.65,0.27913567]
[1642628269696,47.8847,135.71,135.65,0.27913567]
[1642628269896,47.8847,135.71,135.65,36.05500446]
[1642628271200,48.1447,135.71,135.65,47.37030446]
[1642628271799,48.1447,135.71,135.65,47.11030446]
[1642628274207,47.8847,135.71,135.65,47.11030446]
[1642628274408,47.8847,135.71,135.65,47.37030446]
[1642628275208,23.934,135.71,135.65,47.37030446]
[1642628275608,24.194,135.71,135.65,47.37030446]
[1642628276611,11.0551,135.74,135.65,47.37030446]
[1642628276814,45.7108,135.8,135.69,11.0503]
[1642628277011,45.7108,135.8,135.69,27.0143]
[1642628277208,56.7613,135.8,135.7,1.66874919]
[1642628277612,39.95196942,135.79,135.71,40.06933595]
[1642628277812,39.95196942,135.79,135.71,40.32933595]
[1642628278011,39.95196942,135.79,135.72,0.25]
[1642628278211,23.64,135.78,135.72,11.2994]
[1642628278812,23.64,135.78,135.72,11.5594]
[1642628280251,25.1071,135.84,135.72,23.57814919]
[1642628280448,25.1071,135.84,135.76,11.0459]
[1642628280449,23.2231,135.83,135.76,11.0459]
[1642628280844,23.2231,135.83,135.77,0.25]
[1642628281044,43.85576526,135.82,135.74,10.6]
[1642628281448,43.85576526,135.82,135.75,6.0]
[1642628281844,22.5782,135.81,135.75,6.0]
[1642628282645,22.5782,135.81,135.74,21.9078]
[1642628282848,22.5782,135.81,135.75,0.25]
[1642628284649,22.5782,135.81,135.75,11.2974]
[1642628285149,22.8382,135.81,135.75,11.2974]
[1642628285951,22.8382,135.81,135.76,38.82209184]
[1642628286351,22.8382,135.81,135.77,0.25]
[1642628286552,25.8696,135.86,135.77,0.25]
[1642628286853,23.7225,135.85,135.77,0.25]
[1642628287551,23.7225,135.85,135.77,11.2957]
[1642628287751,23.7225,135.85,135.77,11.5557]
[1642628289155,23.9825,135.85,135.77,11.5557]
[1642628291056,23.7225,135.85,135.77,11.5557]
[1642628291260,14.2536,135.9,135.78,10.6]
[1642628291261,25.2961,135.9,135.78,10.6]
[1642628291459,23.6211,135.89,135.78,21.935]
[1642628291658,23.6211,135.89,135.81,11.0403]
[1642628291860,23.6211,135.89,135.81,21.6403]
[1642628292059,23.6211,135.89,135.82,42.85256673]
[1642628292360,23.6211,135.89,135.82,43.11256673]
[1642628292559,23.6211,135.89,135.84,11.0396]
[1642628292758,23.6211,135.89,135.85,0.25]
[1642628293361,23.6525,135.93,135.85,0.25]